[Event "SVK ECo-C Extraliga 2021-22"]
[Site "Slovakia"]
[Date "2022.02.19"]
[Round "3.7"]
[White "Danada, Tomas"]
[Black "Spacek, Oliver"]
[Result "0-1"]
[ECO "A10"]
[WhiteElo "2337"]
[BlackElo "2228"]
[Annotator "ChessBase"]
[PlyCount "126"]
[EventDate "2021.10.21"]
[EventType "team-tourn"]
[EventCountry "SVK"]
[SourceTitle "playchess.com"]
[Source "ChessBase"]
[SourceQuality "1"]
[TimeControl "40/5400+30:1800+30"]

1. c4 {[%emt 0:00:05]} g6 {[%emt 0:00:19]} 2. d4 {[%emt 0:00:14]} Bg7 {[%emt 0:00:05]} 3. Nf3 {[%emt 0:00:23]} c5 {[%emt 0:02:56]} 4. e4 {[%emt 0:00:06]} Nc6 {[%emt 0:02:27]} 5. d5 {[%emt 0:01:29]} Nd4 {[%emt 0:00:34]} 6. Nxd4 {[%emt 0:00:43]} Bxd4 {[%emt 0:05:24]} 7. Bd3 {[%emt 0:02:19]} d6 {[%emt 0:02:18]} 8. Nc3 {[%emt 0:00:38]} e6 {[%emt 0:08:40]} 9. O-O {[%emt 0:01:09]} a6 {[%emt 0:00:20]} 10. Qe2 {[%emt 0:02:55]} Qf6 {[%emt 0:05:05]} 11. Bc2 {[%emt 0:07:59]} Bd7 {[%emt 0:07:17]} 12. a4 Qg7 {[%emt 0:33:47]} 13. Qd3 {[%emt 0:20:57]} Ne7 {[%emt 0:09:34]} 14. Ne2 {[%emt 0:03:29]} exd5 {[%emt 0:00:05]} 15. Nxd4 {[%emt 0:03:57]} dxc4 {[%emt 0:01:35]} 16. Ne6 {[%emt 0:01:58]} cxd3 {[%emt 0:15:01]} 17. Nxg7+ {[%emt 0:00:05]} Kf8 {[%emt 0:00:09]} 18. Nh5 {[%emt 0:04:02]} gxh5 {[%emt 0:01:13]} 19. Bh6+ {[%emt 0:00:27]} Ke8 {[%emt 0:00:06]} 20. Bxd3 {[%emt 0:00:10]} Rg8 {[%emt 0:01:45]} 21. Rfe1 {[%emt 0:16:49]} Bc6 {[%emt 0:00:33]} 22. Re3 {[%emt 0:06:41]} Kd7 {[%emt 0:01:15]} 23. Rh3 {[%emt 0:01:37]} f5 {[%emt 0:00:35]} 24. f3 {[%emt 0:01:05]} fxe4 {[%emt 0:00:33]} 25. Bxe4 {[%emt 0:02:21]} Bxe4 {[%emt 0:00:04]} 26. fxe4 {[%emt 0:00:03]} Rg4 {[%emt 0:00:11]} 27. Re1 {[%emt 0:01:36]} Rag8 {[%emt 0:00:02]} 28. g3 {[%emt 0:01:59]} h4 {[%emt 0:00:25]} 29. Kf2 {[%emt 0:00:55]} Ng6 {[%emt 0:00:11]} 30. Re3 {[%emt 0:00:51]} Re8 {[%emt 0:00:51]} 31. gxh4 {[%emt 0:05:42]} Rexe4 {[%emt 0:00:35]} 32. Rb3 {[%emt 0:01:37]} Nxh4 {[%emt 0:01:37]} 33. Rxb7+ {[%emt 0:00:25]} Kc6 {[%emt 0:00:02]} 34. Rhb3 {[%emt 0:01:15]} Rg2+ {[%emt 0:00:21]} 35. Kf1 {[%emt 0:00:01]} Rxa4 {[%emt 0:01:23]} 36. R7b6+ {[%emt 0:00:05]} Kc7 {[%emt 0:00:06]} 37. Rb7+ {[%emt 0:00:22]} Kc8 {[%emt 0:00:19]} 38. Rb8+ {[%emt 0:00:04]} Kd7 {[%emt 0:00:44]} 39. R8b7+ {[%emt 0:00:24]} Ke6 {[%emt 0:00:00]} 40. Re3+ {[%emt 0:00:00]} Kd5 {[%emt 0:00:00]} 41. Rb6 {[%emt 0:05:07]} Rxh2 {[%emt 0:14:31]} 42. Rd3+ {[%emt 0:01:29]} Rd4 {[%emt 0:00:23]} 43. Rxd4+ {[%emt 0:01:08]} cxd4 {[%emt 0:01:47]} 44. Bf4 {[%emt 0:00:58]} Rh1+ {[%emt 0:00:18]} 45. Ke2 {[%emt 0:00:17]} Nf5 {[%emt 0:00:04]} 46. Rxa6 {[%emt 0:00:39]} h5 {[%emt 0:02:16]} 47. Kd3 Rh3+ 48. Kc2 {[%emt 0:02:14]} Rf3 {[%emt 0:01:28]} 49. Bd2 {[%emt 0:00:42]} h4 {[%emt 0:07:04]} 50. Ra7 {[%emt 0:00:25]} Ng3 {[%emt 0:03:43]} 51. Be1 {[%emt 0:01:35]} d3+ {[%emt 0:01:08]} 52. Kd1 {[%emt 0:01:28]} Ne4 {[%emt 0:02:41]} 53. Rh7 {[%emt 0:02:37]} Rf1 {[%emt 0:01:38]} 54. Rxh4 {[%emt 0:00:08]} d2 {[%emt 0:01:12]} 55. Rxe4 {[%emt 0:00:04]} Kxe4 {[%emt 0:00:06]} 56. Kxd2 {[%emt 0:00:04]} d5 {[%emt 0:00:24]} 57. b4 {[%emt 0:00:38]} Rf3 {[%emt 0:00:29]} 58. Kc2 {[%emt 0:00:20]} d4 {[%emt 0:00:20]} 59. Bd2 {[%emt 0:01:42]} Kd5 {[%emt 0:00:33]} 60. Be1 {[%emt 0:00:45]} Kc4 {[%emt 0:00:51]} 61. Bd2 {[%emt 0:00:07]} Rf1 {[%emt 0:00:11]} 62. Kb2 {[%emt 0:00:10]} d3 {[%emt 0:00:57]} 63. b5 {[%emt 0:00:43]} Rf5 {[%emt 0:00:12]} 0-1

[Event "SVK ECo-C Extraliga 2021-22"]
[Site "Slovakia"]
[Date "2022.02.19"]
[Round "3.7"]
[White "Briestensky, Rastislav"]
[Black "Rucek, Kristian"]
[Result "1/2-1/2"]
[ECO "C07"]
[WhiteElo "2312"]
[BlackElo "2109"]
[Annotator "ChessBase"]
[PlyCount "115"]
[EventDate "2021.10.21"]
[EventType "team-tourn"]
[EventCountry "SVK"]
[SourceTitle "playchess.com"]
[Source "ChessBase"]
[SourceQuality "1"]
[TimeControl "40/5400+30:1800+30"]

1. e4 {[%emt 0:00:01]} e6 {[%emt 0:00:07]} 2. d4 {[%emt 0:00:36]} d5 {[%emt 0:00:05]} 3. Nd2 {[%emt 0:00:10]} c5 {[%emt 0:00:14]} 4. exd5 {[%emt 0:01:08]} Qxd5 {[%emt 0:00:11]} 5. Ngf3 {[%emt 0:00:07]} cxd4 {[%emt 0:00:10]} 6. Bc4 {[%emt 0:00:31]} Qd6 {[%emt 0:00:01]} 7. O-O {[%emt 0:00:12]} Nf6 {[%emt 0:00:08]} 8. Nb3 {[%emt 0:00:58]} Nc6 {[%emt 0:00:07]} 9. Re1 {[%emt 0:02:30]} Be7 {[%emt 0:01:07]} 10. Nbxd4 {[%emt 0:00:41]} Nxd4 {[%emt 0:00:22]} 11. Qxd4 {[%emt 0:01:46]} Qxd4 {[%emt 0:00:22]} 12. Nxd4 {[%emt 0:00:05]} O-O {[%emt 0:02:57]} 13. c3 {[%emt 0:06:57]} Bd7 {[%emt 0:02:15]} 14. Bf1 {[%emt 0:04:34]} Rfd8 {[%emt 0:01:51]} 15. a3 {[%emt 0:06:34]} Rac8 {[%emt 0:02:16]} 16. h3 {[%emt 0:07:10]} Bc5 {[%emt 0:06:02]} 17. Nb3 {[%emt 0:02:07]} Bb6 {[%emt 0:00:59]} 18. a4 {[%emt 0:00:19]} a6 {[%emt 0:04:27]} 19. a5 {[%emt 0:05:29]} Ba7 {[%emt 0:00:27]} 20. c4 {[%emt 0:03:00]} Bc6 {[%emt 0:02:16]} 21. Be3 {[%emt 0:02:30]} Bxe3 {[%emt 0:00:14]} 22. Rxe3 {[%emt 0:00:51]} Ne4 {[%emt 0:09:22]} 23. Bd3 {[%emt 0:06:05]} Nd6 {[%emt 0:02:22]} 24. f3 {[%emt 0:12:38]} Be8 {[%emt 0:03:17]} 25. Rc1 {[%emt 0:00:46]} Ba4 {[%emt 0:01:38]} 26. Na1 {[%emt 0:00:52]} Nf5 {[%emt 0:12:10]} 27. Bxf5 {[%emt 0:01:01]} exf5 {[%emt 0:00:02]} 28. b3 {[%emt 0:01:09]} Bd7 {[%emt 0:00:12]} 29. Rd3 {[%emt 0:04:34]} Be6 {[%emt 0:01:18]} 30. Rcd1 {[%emt 0:00:25]} Rxd3 {[%emt 0:00:09]} 31. Rxd3 {[%emt 0:00:01]} g5 {[%emt 0:00:26]} 32. Nc2 {[%emt 0:00:51]} Rc5 {[%emt 0:09:12]} 33. Rd8+ {[%emt 0:01:06]} Kg7 {[%emt 0:00:01]} 34. Rb8 {[%emt 0:00:11]} Rxa5 {[%emt 0:01:47]} 35. Rxb7 {[%emt 0:00:12]} Kf6 {[%emt 0:00:53]} 36. Nd4 {[%emt 0:01:06]} Ra1+ {[%emt 0:02:06]} 37. Kf2 {[%emt 0:02:32]} Ra2+ {[%emt 0:00:58]} 38. Kg3 {[%emt 0:03:27]} h5 {[%emt 0:03:54]} 39. Rb6 {[%emt 0:09:46]} h4+ {[%emt 0:01:23]} 40. Kh2 {[%emt 0:00:27]} Ke5 {[%emt 0:01:52]} 41. Nc6+ {[%emt 0:33:02]} Kf4 {[%emt 0:36:50]} 42. Nb4 {[%emt 0:10:45]} Rd2 {[%emt 0:00:38]} 43. Rxa6 {[%emt 0:00:40]} g4 {[%emt 0:00:43]} 44. hxg4 {[%emt 0:01:16]} fxg4 {[%emt 0:03:41]} 45. fxg4 {[%emt 0:00:09]} Kxg4 {[%emt 0:12:13]} 46. Ra2 {[%emt 0:00:59]} Rxa2 {[%emt 0:00:04]} 47. Nxa2 {[%emt 0:00:08]} Kf4 {[%emt 0:00:10]} 48. Nc3 {[%emt 0:00:00]} Ke3 {[%emt 0:00:00]} 49. Nb5 {[%emt 0:00:00]} f5 {[%emt 0:00:00]} 50. Nc7 {[%emt 0:00:00]} Bd7 {[%emt 0:00:00]} 51. Nd5+ {[%emt 0:00:00]} Kd3 {[%emt 0:00:00]} 52. Kh3 {[%emt 0:00:00]} Kc2 {[%emt 0:00:00]} 53. Nb6 {[%emt 0:00:00]} Bc6 {[%emt 0:00:00]} 54. b4 {[%emt 0:00:00]} Kc3 {[%emt 0:00:21]} 55. b5 {[%emt 0:00:00]} Be8 {[%emt 0:00:05]} 56. Nc8 {[%emt 0:00:00]} Kd4 {[%emt 0:13:13]} 57. Nd6 {[%emt 0:00:00]} Bd7 {[%emt 0:00:10]} 58. b6 {[%emt 0:00:00]} 1/2-1/2

[Event "SVK ECo-C Extraliga 2021-22"]
[Site "Slovakia"]
[Date "2022.02.19"]
[Round "3.7"]
[White "Strachan, Jan"]
[Black "Kardis, Benjamin"]
[Result "0-1"]
[ECO "B10"]
[WhiteElo "2115"]
[BlackElo "1939"]
[Annotator "ChessBase"]
[PlyCount "116"]
[EventDate "2021.10.21"]
[EventType "team-tourn"]
[EventCountry "SVK"]
[SourceTitle "playchess.com"]
[Source "ChessBase"]
[SourceQuality "1"]
[TimeControl "40/5400+30:1800+30"]

1. e4 {[%emt 0:00:30]} c6 {[%emt 0:00:30]} 2. Nc3 {[%emt 0:00:30]} d5 {[%emt 0:00:30]} 3. Nf3 {[%emt 0:00:30]} dxe4 {[%emt 0:00:30]} 4. Nxe4 {[%emt 0:00:30]} Nf6 {[%emt 0:00:30]} 5. Nxf6+ {[%emt 0:00:30]} exf6 {[%emt 0:00:30]} 6. d4 {[%emt 0:00:30]} Bd6 {[%emt 0:00:00]} 7. h3 {[%emt 0:00:00]} O-O {[%emt 0:01:35]} 8. Be2 {[%emt 0:00:00]} Na6 {[%emt 0:00:48]} 9. O-O {[%emt 0:00:39]} Re8 {[%emt 0:04:06]} 10. c3 {[%emt 0:03:41]} Nc7 {[%emt 0:04:55]} 11. Ne1 {[%emt 0:01:29]} f5 {[%emt 0:05:00]} 12. Nd3 {[%emt 0:01:23]} Ne6 {[%emt 0:04:39]} 13. Re1 {[%emt 0:03:28]} Qh4 {[%emt 0:07:44]} 14. Bf1 {[%emt 0:00:17]} Rd8 {[%emt 0:11:50]} 15. Qe2 {[%emt 0:12:26]} f4 {[%emt 0:03:53]} 16. Bd2 {[%emt 0:04:31]} h6 {[%emt 0:03:02]} 17. Ne5 {[%emt 0:03:24]} Ng5 {[%emt 0:04:19]} 18. Nf3 {[%emt 0:01:47]} Qh5 {[%emt 0:02:01]} 19. Nxg5 {[%emt 0:00:35]} Qxg5 {[%emt 0:00:15]} 20. Qf3 {[%emt 0:01:35]} Qf6 {[%emt 0:09:50]} 21. Bc4 {[%emt 0:08:36]} a5 {[%emt 0:03:25]} 22. a4 {[%emt 0:00:36]} Bd7 {[%emt 0:02:08]} 23. Re2 {[%emt 0:01:05]} Re8 {[%emt 0:02:29]} 24. Rae1 {[%emt 0:00:22]} Rxe2 {[%emt 0:00:41]} 25. Rxe2 {[%emt 0:00:14]} Re8 {[%emt 0:00:04]} 26. Rxe8+ {[%emt 0:03:33]} Bxe8 {[%emt 0:00:05]} 27. Qg4 {[%emt 0:00:58]} Kf8 {[%emt 0:01:43]} 28. Bd3 {[%emt 0:01:28]} Kg8 {[%emt 0:13:04]} 29. Qc8 {[%emt 0:01:30]} Qe7 {[%emt 0:00:10]} 30. Qf5 {[%emt 0:00:09]} Qg5 {[%emt 0:01:47]} 31. Qe4 {[%emt 0:04:40]} Bd7 {[%emt 0:00:55]} 32. g3 {[%emt 0:01:27]} Qh5 {[%emt 0:01:43]} 33. Bxf4 {[%emt 0:11:24]} Bxf4 {[%emt 0:00:33]} 34. gxf4 {[%emt 0:00:27]} Qxh3 {[%emt 0:01:07]} 35. f5 {[%emt 0:00:18]} Qh5 {[%emt 0:00:57]} 36. f3 {[%emt 0:05:09]} Qg5+ {[%emt 0:00:33]} 37. Kf2 {[%emt 0:00:07]} h5 {[%emt 0:04:50]} 38. c4 {[%emt 0:04:31]} h4 {[%emt 0:00:19]} 39. Qg4 {[%emt 0:00:34]} Qd2+ {[%emt 0:01:03]} 40. Be2 {[%emt 0:00:11]} h3 {[%emt 0:01:36]} 41. Qxh3 {[%emt 0:31:15]} Qxd4+ {[%emt 0:31:03]} 42. Kf1 {[%emt 0:00:48]} Qxb2 {[%emt 0:00:40]} 43. Bd3 {[%emt 0:03:41]} Qc3 {[%emt 0:03:10]} 44. Ke2 {[%emt 0:00:19]} Qe5+ {[%emt 0:00:09]} 45. Kf1 {[%emt 0:01:38]} g6 {[%emt 0:00:12]} 46. Qg4 {[%emt 0:02:34]} Bxf5 {[%emt 0:00:11]} 47. Bxf5 {[%emt 0:00:08]} Qxf5 {[%emt 0:00:02]} 48. Qd4 {[%emt 0:01:14]} Qxf3+ {[%emt 0:00:13]} 49. Kg1 {[%emt 0:00:10]} Qg3+ {[%emt 0:01:42]} 50. Kh1 {[%emt 0:00:05]} Qg5 {[%emt 0:00:28]} 51. Kh2 {[%emt 0:02:11]} c5 {[%emt 0:01:42]} 52. Qe4 {[%emt 0:00:28]} b6 {[%emt 0:00:00]} 53. Kh1 {[%emt 0:00:00]} Qf6 {[%emt 0:00:00]} 54. Kh2 {[%emt 0:00:00]} g5 {[%emt 0:00:00]} 55. Kg2 {[%emt 0:00:00]} g4 {[%emt 0:00:00]} 56. Qe8+ {[%emt 0:00:00]} Kg7 {[%emt 0:00:00]} 57. Kh1 g3 58. Qe2 {[%emt 0:00:00]} Qh4+ {[%emt 0:00:00]} 0-1

[Event "SVK ECo-C Extraliga 2021-22"]
[Site "Slovakia"]
[Date "2022.02.19"]
[Round "3.8"]
[White "Petran, Peter"]
[Black "Kovacik, Emil"]
[Result "1/2-1/2"]
[ECO "B08"]
[WhiteElo "2240"]
[BlackElo "2039"]
[Annotator "ChessBase"]
[PlyCount "59"]
[EventDate "2021.10.21"]
[EventType "team-tourn"]
[EventCountry "SVK"]
[SourceTitle "playchess.com"]
[Source "ChessBase"]
[SourceQuality "1"]
[TimeControl "40/5400+30:1800+30"]

1. e4 {[%emt 0:00:06]} g6 {[%emt 0:00:08]} 2. d4 {[%emt 0:00:15]} Bg7 {[%emt 0:00:06]} 3. Nc3 {[%emt 0:00:10]} d6 {[%emt 0:00:14]} 4. Nf3 {[%emt 0:04:11]} Nf6 {[%emt 0:00:06]} 5. Bc4 {[%emt 0:01:12]} O-O {[%emt 0:00:08]} 6. O-O {[%emt 0:00:10]} Bg4 {[%emt 0:04:22]} 7. h3 {[%emt 0:01:20]} Bxf3 {[%emt 0:00:52]} 8. Qxf3 {[%emt 0:00:02]} Nc6 {[%emt 0:00:11]} 9. Be3 {[%emt 0:03:08]} e5 {[%emt 0:00:19]} 10. d5 {[%emt 0:10:19]} Ne7 {[%emt 0:01:12]} 11. Bg5 {[%emt 0:01:02]} Nd7 {[%emt 0:00:08]} 12. Bb5 {[%emt 0:10:07]} f6 {[%emt 0:01:19]} 13. Bxd7 {[%emt 0:12:03]} Qxd7 {[%emt 0:00:38]} 14. Bd2 {[%emt 0:00:20]} f5 {[%emt 0:00:10]} 15. Qd3 {[%emt 0:00:54]} a6 {[%emt 0:00:28]} 16. f3 {[%emt 0:06:38]} f4 {[%emt 0:03:47]} 17. Ne2 {[%emt 0:02:15]} g5 {[%emt 0:00:16]} 18. c4 {[%emt 0:03:51]} h5 {[%emt 0:03:34]} 19. Kf2 {[%emt 0:02:24]} Bf6 {[%emt 0:06:11]} 20. Rh1 {[%emt 0:00:54]} Ng6 {[%emt 0:00:54]} 21. b4 {[%emt 0:03:25]} Be7 {[%emt 0:05:26]} 22. Rac1 {[%emt 0:01:10]} b6 {[%emt 0:00:28]} 23. Be1 {[%emt 0:01:58]} Rf7 {[%emt 0:00:40]} 24. Kf1 {[%emt 0:01:29]} Bf8 {[%emt 0:05:45]} 25. Qa3 {[%emt 0:02:47]} Rh7 {[%emt 0:04:55]} 26. Bf2 {[%emt 0:03:41]} a5 {[%emt 0:04:52]} 27. c5 {[%emt 0:00:31]} dxc5 {[%emt 0:02:50]} 28. bxc5 {[%emt 0:00:09]} b5 {[%emt 0:15:16]} 29. Qb3 {[%emt 0:05:26]} b4 {[%emt 0:03:42]} 30. a3 {[%emt 0:04:28]} 1/2-1/2

[Event "SVK ECo-C Extraliga 2021-22"]
[Site "Slovakia"]
[Date "2022.02.19"]
[Round "3.8"]
[White "Diviak, Rastislav"]
[Black "Zambor, Norbert"]
[Result "0-1"]
[ECO "B33"]
[WhiteElo "2017"]
[BlackElo "2279"]
[Annotator "ChessBase"]
[PlyCount "78"]
[EventDate "2021.10.21"]
[EventType "team-tourn"]
[EventCountry "SVK"]
[SourceTitle "playchess.com"]
[Source "ChessBase"]
[SourceQuality "1"]
[TimeControl "40/5400+30:1800+30"]

1. e4 {[%emt 0:00:04]} c5 {[%emt 0:00:15]} 2. Nf3 {[%emt 0:00:08]} Nc6 {[%emt 0:00:46]} 3. d4 {[%emt 0:00:11]} cxd4 {[%emt 0:00:09]} 4. Nxd4 {[%emt 0:00:07]} Nf6 {[%emt 0:00:25]} 5. Nc3 {[%emt 0:00:10]} e5 {[%emt 0:00:09]} 6. Ndb5 {[%emt 0:00:24]} d6 {[%emt 0:01:00]} 7. Bg5 {[%emt 0:00:32]} a6 {[%emt 0:00:09]} 8. Na3 {[%emt 0:00:06]} b5 {[%emt 0:00:13]} 9. Bxf6 {[%emt 0:00:26]} gxf6 {[%emt 0:00:13]} 10. Nd5 {[%emt 0:00:07]} Bg7 {[%emt 0:02:43]} 11. c3 {[%emt 0:00:41]} Ne7 {[%emt 0:07:12]} 12. Nc2 {[%emt 0:07:18]} O-O {[%emt 0:22:40]} 13. Nce3 {[%emt 0:04:24]} Nxd5 {[%emt 0:04:25]} 14. Nxd5 {[%emt 0:00:18]} f5 {[%emt 0:01:11]} 15. exf5 {[%emt 0:19:46]} Bxf5 {[%emt 0:00:30]} 16. Bd3 {[%emt 0:00:30]} Be6 {[%emt 0:00:30]} 17. Bc2 {[%emt 0:00:30]} Rb8 18. O-O a5 {[%emt 0:13:32]} 19. Qd2 {[%emt 0:11:11]} f5 {[%emt 0:09:33]} 20. Rad1 {[%emt 0:22:49]} Kh8 {[%emt 0:11:43]} 21. Bb3 {[%emt 0:10:11]} Qd7 {[%emt 0:06:21]} 22. Qg5 {[%emt 0:07:24]} a4 {[%emt 0:05:52]} 23. Bc2 {[%emt 0:00:20]} Qf7 {[%emt 0:00:36]} 24. Nb4 {[%emt 0:07:44]} d5 {[%emt 0:05:50]} 25. Rfe1 {[%emt 0:00:25]} Bf6 {[%emt 0:01:20]} 26. Qd2 {[%emt 0:03:38]} Rg8 {[%emt 0:00:19]} 27. Nc6 {[%emt 0:00:20]} Rbc8 {[%emt 0:01:01]} 28. Nxe5 {[%emt 0:00:22]} Qg7 {[%emt 0:05:15]} 29. f4 {[%emt 0:00:06]} d4 {[%emt 0:00:22]} 30. cxd4 {[%emt 0:01:56]} Bd5 {[%emt 0:00:34]} 31. g3 {[%emt 0:00:45]} Bh4 {[%emt 0:00:26]} 32. Re3 {[%emt 0:01:02]} Qh6 {[%emt 0:00:44]} 33. Rf1 {[%emt 0:01:48]} Bxg3 {[%emt 0:00:23]} 34. Nf7+ {[%emt 0:01:00]} Bxf7 {[%emt 0:00:10]} 35. Rxg3 {[%emt 0:00:16]} Rxg3+ {[%emt 0:00:56]} 36. hxg3 {[%emt 0:00:06]} Bd5 {[%emt 0:00:29]} 37. Bxf5 {[%emt 0:01:18]} Qh1+ {[%emt 0:00:21]} 38. Kf2 {[%emt 0:00:01]} Qf3+ {[%emt 0:00:25]} 39. Ke1 {[%emt 0:01:05]} Re8+ {[%emt 0:00:07]} 0-1

[Event "SVK ECo-C Extraliga 2021-22"]
[Site "Slovakia"]
[Date "2022.02.19"]
[Round "3.8"]
[White "Stauder Matej"]
[Black "Farkas Gabor"]
[Result "0-1"]
[ECO "B48"]
[WhiteElo "2015"]
[BlackElo "2337"]
[Annotator "ChessBase"]
[PlyCount "110"]
[EventDate "2021.10.21"]
[EventType "team-tourn"]
[EventCountry "SVK"]
[SourceTitle "playchess.com"]
[Source "ChessBase"]
[SourceQuality "1"]
[TimeControl "40/5400+30:1800+30"]

1. e4 {[%emt 0:00:07]} c5 {[%emt 0:00:11]} 2. Nf3 {[%emt 0:00:07]} e6 {[%emt 0:00:19]} 3. d4 {[%emt 0:00:08]} cxd4 {[%emt 0:00:06]} 4. Nxd4 {[%emt 0:00:06]} Nc6 {[%emt 0:00:12]} 5. Nc3 {[%emt 0:00:43]} Qc7 {[%emt 0:11:10]} 6. Be3 {[%emt 0:06:11]} a6 {[%emt 0:02:32]} 7. Qd2 {[%emt 0:09:42]} Nf6 {[%emt 0:00:30]} 8. f3 {[%emt 0:03:38]} Bb4 {[%emt 0:05:24]} 9. a3 {[%emt 0:10:07]} Be7 {[%emt 0:08:27]} 10. g4 {[%emt 0:02:42]} d6 {[%emt 0:04:26]} 11. h4 {[%emt 0:00:31]} b5 {[%emt 0:08:51]} 12. h5 {[%emt 0:00:30]} h6 {[%emt 0:00:30]} 13. O-O-O {[%emt 0:00:30]} Bb7 {[%emt 0:00:30]} 14. Nxc6 {[%emt 0:05:25]} Qxc6 {[%emt 0:07:57]} 15. Qd4 {[%emt 0:03:18]} Rc8 {[%emt 0:05:14]} 16. Rh2 {[%emt 0:03:06]} Qc7 {[%emt 0:12:08]} 17. g5 {[%emt 0:06:39]} hxg5 {[%emt 0:03:00]} 18. h6 {[%emt 0:00:09]} Rxh6 {[%emt 0:01:15]} 19. Rg2 {[%emt 0:05:39]} Rg6 {[%emt 0:04:58]} 20. Bxg5 {[%emt 0:09:11]} d5 {[%emt 0:10:18]} 21. e5 {[%emt 0:03:37]} Ng8 {[%emt 0:03:49]} 22. f4 {[%emt 0:10:32]} Bxa3 {[%emt 0:02:42]} 23. bxa3 {[%emt 0:03:16]} Qxc3 {[%emt 0:00:07]} 24. Qxc3 {[%emt 0:00:11]} Rxc3 {[%emt 0:00:05]} 25. Bd3 {[%emt 0:00:38]} Rxd3 {[%emt 0:00:59]} 26. cxd3 {[%emt 0:00:43]} f6 {[%emt 0:01:31]} 27. Rc2 {[%emt 0:00:54]} fxg5 {[%emt 0:02:52]} 28. Rc7 {[%emt 0:00:09]} gxf4 {[%emt 0:00:05]} 29. Rf1 {[%emt 0:05:52]} Rg4 {[%emt 0:00:43]} 30. Rxb7 {[%emt 0:00:25]} Ne7 {[%emt 0:00:41]} 31. Rb6 {[%emt 0:01:10]} Kf7 {[%emt 0:00:21]} 32. Rxa6 {[%emt 0:00:28]} g5 {[%emt 0:00:35]} 33. Rb6 {[%emt 0:01:14]} Nf5 {[%emt 0:01:00]} 34. Rxb5 {[%emt 0:00:53]} Rg3 {[%emt 0:00:55]} 35. Rb7+ {[%emt 0:04:02]} Kg6 {[%emt 0:00:19]} 36. Kd2 {[%emt 0:02:32]} Rg2+ {[%emt 0:00:05]} 37. Kc3 {[%emt 0:00:27]} d4+ {[%emt 0:00:27]} 38. Kb3 {[%emt 0:00:11]} Ne3 {[%emt 0:00:36]} 39. Rf3 {[%emt 0:01:57]} Kf5 {[%emt 0:00:20]} 40. Rh7 {[%emt 0:02:02]} Kxe5 {[%emt 0:00:54]} 41. a4 {[%emt 0:05:58]} Rd2 {[%emt 0:02:07]} 42. a5 {[%emt 0:02:10]} Rxd3+ {[%emt 0:00:05]} 43. Ka2 {[%emt 0:00:35]} Rd2+ {[%emt 0:00:05]} 44. Kb3 {[%emt 0:00:51]} g4 {[%emt 0:00:24]} 45. a6 {[%emt 0:04:16]} Rd3+ {[%emt 0:04:39]} 46. Ka2 {[%emt 0:01:59]} gxf3 {[%emt 0:03:28]} 47. a7 {[%emt 0:00:11]} Nc4 {[%emt 0:01:04]} 48. Rh5+ {[%emt 0:03:41]} Kf6 {[%emt 0:00:09]} 49. a8=Q {[%emt 0:03:14]} Ra3+ {[%emt 0:00:04]} 50. Qxa3 {[%emt 0:00:10]} Nxa3 {[%emt 0:00:03]} 51. Kxa3 {[%emt 0:00:07]} e5 {[%emt 0:00:04]} 52. Kb3 {[%emt 0:00:39]} f2 {[%emt 0:00:18]} 53. Rh1 {[%emt 0:00:07]} e4 {[%emt 0:00:19]} 54. Kc4 {[%emt 0:00:39]} e3 {[%emt 0:00:22]} 55. Kd3 {[%emt 0:00:09]} f3 {[%emt 0:00:06]} 0-1

[Event "SVK ECo-C Extraliga 2021-22"]
[Site "Slovakia"]
[Date "2022.02.19"]
[Round "3.8"]
[White "Steiniger, Florian"]
[Black "Gulbis, Adrian"]
[Result "0-1"]
[ECO "C50"]
[WhiteElo "2006"]
[BlackElo "2093"]
[Annotator "ChessBase"]
[PlyCount "112"]
[EventDate "2021.10.21"]
[EventType "team-tourn"]
[EventCountry "SVK"]
[SourceTitle "playchess.com"]
[Source "ChessBase"]
[SourceQuality "1"]
[TimeControl "40/5400+30:1800+30"]

1. e4 {[%emt 0:00:04]} e5 {[%emt 0:00:15]} 2. Nf3 {[%emt 0:00:14]} Nc6 {[%emt 0:00:13]} 3. Bc4 {[%emt 0:00:19]} Bc5 {[%emt 0:00:14]} 4. d3 {[%emt 0:01:06]} d6 {[%emt 0:03:02]} 5. c3 {[%emt 0:00:41]} Qe7 {[%emt 0:00:43]} 6. Bb3 {[%emt 0:01:53]} Nf6 {[%emt 0:00:42]} 7. Nbd2 {[%emt 0:01:46]} Bg4 {[%emt 0:01:42]} 8. h3 {[%emt 0:02:05]} Be6 {[%emt 0:02:37]} 9. Nf1 {[%emt 0:04:45]} O-O-O {[%emt 0:01:28]} 10. Qe2 {[%emt 0:02:24]} d5 {[%emt 0:03:46]} 11. Bd2 {[%emt 0:04:31]} d4 {[%emt 0:06:49]} 12. Ng3 {[%emt 0:07:31]} Bxb3 {[%emt 0:15:33]} 13. axb3 {[%emt 0:02:23]} dxc3 {[%emt 0:01:27]} 14. bxc3 {[%emt 0:06:53]} g6 {[%emt 0:15:54]} 15. b4 {[%emt 0:04:57]} Bb6 {[%emt 0:00:56]} 16. O-O {[%emt 0:05:51]} h6 {[%emt 0:02:35]} 17. Rfb1 {[%emt 0:01:59]} h5 {[%emt 0:12:49]} 18. b5 {[%emt 0:04:01]} Nb8 {[%emt 0:00:24]} 19. Bg5 {[%emt 0:01:46]} Nbd7 {[%emt 0:02:57]} 20. d4 {[%emt 0:06:41]} Rde8 {[%emt 0:05:20]} 21. Re1 {[%emt 0:03:10]} Qd6 {[%emt 0:02:17]} 22. Qc4 {[%emt 0:02:50]} Nh7 {[%emt 0:04:37]} 23. Rad1 {[%emt 0:08:36]} exd4 {[%emt 0:05:36]} 24. cxd4 {[%emt 0:00:52]} Nxg5 {[%emt 0:01:12]} 25. Nxg5 {[%emt 0:00:31]} Qf4 {[%emt 0:00:49]} 26. h4 {[%emt 0:05:52]} Ne5 {[%emt 0:03:04]} 27. Qb3 {[%emt 0:09:29]} Qxh4 {[%emt 0:01:03]} 28. Nxf7 {[%emt 0:01:52]} Ng4 {[%emt 0:01:20]} 29. Nxh8 {[%emt 0:02:54]} Rxh8 {[%emt 0:00:47]} 30. Re2 {[%emt 0:02:50]} Rf8 {[%emt 0:00:58]} 31. Qa3 {[%emt 0:01:28]} Rf4 {[%emt 0:01:27]} 32. Qb3 {[%emt 0:00:21]} Rf8 {[%emt 0:00:27]} 33. Qe6+ {[%emt 0:00:28]} Kb8 {[%emt 0:00:20]} 34. Qxg6 {[%emt 0:00:59]} Qh2+ {[%emt 0:00:14]} 35. Kf1 {[%emt 0:00:08]} Qxg3 {[%emt 0:00:14]} 36. Ke1 {[%emt 0:02:17]} Ba5+ {[%emt 0:00:49]} 37. Rdd2 {[%emt 0:00:10]} Bxd2+ {[%emt 0:01:22]} 38. Kxd2 {[%emt 0:00:10]} Qf4+ {[%emt 0:00:29]} 39. Kc2 {[%emt 0:00:50]} Nxf2 {[%emt 0:01:01]} 40. Qxh5 {[%emt 0:01:56]} Qf6 {[%emt 0:02:10]} 41. Qc5 {[%emt 0:30:49]} b6 {[%emt 0:03:25]} 42. Qb4 {[%emt 0:00:00]} Rg8 {[%emt 0:05:28]} 43. Qd2 {[%emt 0:00:00]} Ng4 {[%emt 0:03:14]} 44. Qd3 {[%emt 0:00:00]} Qf1 {[%emt 0:02:24]} 45. e5 {[%emt 0:00:00]} Qa1 {[%emt 0:04:28]} 46. Qc4 {[%emt 0:00:00]} Rd8 {[%emt 0:00:59]} 47. Kd3 {[%emt 0:00:00]} Qb1+ {[%emt 0:01:58]} 48. Kd2 {[%emt 0:00:00]} Qb2+ {[%emt 0:01:13]} 49. Kd3 {[%emt 0:00:00]} Qb1+ {[%emt 0:01:49]} 50. Kd2 {[%emt 0:00:00]} Qf5 {[%emt 0:00:42]} 51. e6 {[%emt 0:00:00]} Ne5 {[%emt 0:03:41]} 52. Qc3 {[%emt 0:00:00]} Qg5+ {[%emt 0:03:06]} 53. Ke1 {[%emt 0:00:00]} Qh4+ {[%emt 0:00:37]} 54. g3 {[%emt 0:01:00]} Qh1+ {[%emt 0:00:14]} 55. Kd2 {[%emt 0:00:06]} Rxd4+ 56. Qxd4 Nf3+ 0-1